[Event "41st Amateur D7"]
[Site "ChessGUI4"]
[Date "2013.07.06"]
[Round "11.4"]
[White "MadChess 1.2"]
[Black "FireFly 2.6.0 64-bit"]
[Result "0-1"]
[BlackElo "2258"]
[ECO "A62"]
[EventDate "2013.??.??"]
[TimeControl "40/1500:40/1500:40/1500"]
[WhiteElo "2200"]

{ i5 Quad } 1.d4 { [%eval 0,1] [%emt 0:00:00] } 1...Nf6
{ [%eval 0,1] [%emt 0:00:00] } 2.c4 { [%eval 0,1] [%emt 0:00:00] } 2...e6
{ [%eval 0,1] [%emt 0:00:00] } 3.Nf3 { [%eval 0,1] [%emt 0:00:00] } 3...c5
{ [%eval 0,1] [%emt 0:00:00] } 4.d5 { [%eval 0,1] [%emt 0:00:00] } 4...d6
{ [%eval 0,1] [%emt 0:00:00] } 5.Nc3 { [%eval 0,1] [%emt 0:00: 00] } 5...exd5
{ [%eval 0,1] [%emt 0:00:00] } 6.cxd5 { [%eval 0,1] [%emt 0:00:00] } 6...g6
{ [%eval 0,1] [%emt 0:00:00] } 7.g3 { [%eval 0,1] [%emt 0:00:00] } 7...Bg7
{ [%eval 0, 1] [%emt 0:00:00] } 8.Bg2 { [%eval 0,1] [%emt 0:00:00] } 8...O-O
{ [%eval 0,1] [%emt 0:00:00] } 9.O-O { [%eval 16,10] [%emt 0:00:33] } 9...Re8
{ [%eval -44,11] [%emt 0:00: 57] (Re8) } 10.Bf4
{ [%eval 12,10] [%emt 0:00:42] (Re1) } 10...Ne4
{ [%eval -36,11] [%emt 0:00:56] (Na6) } 11.Nxe4
{ [%eval 14,11] [%emt 0:00:22] (Nxe4) } 11...Rxe4
{ [%eval -50,12] [%emt 0:00:56] (Rxe4) } 12.Nd2
{ [%eval 31,12] [%emt 0:00:29] (Ng5) } 12...Rb4
{ [%eval -32,12] [%emt 0:00:55] (Rb4) } 13.a3
{ [%eval 35,13] [%emt 0: 00:31] (a3) } 13...Rxf4
{ [%eval -28,13] [%emt 0:00:54] (Rxf4) } 14.gxf4
{ [%eval 28, 13] [%emt 0:00:26] (gxf4) } 14...Bxb2
{ [%eval -25,12] [%emt 0:00:44] (Bxb2) } 15.Ra2
{ [%eval 19,13] [%emt 0:00:44] (Ra2) } 15...Bg7
{ [%eval -22,12] [%emt 0:00:44] (Bg7) } 16.Ne4
{ [%eval 13,12] [%emt 0:00:46] (Qb3) } 16...Qc7
{ [%eval 21,12] [%emt 0:00:44] (Na6) } 17.Rc2
{ [%eval 12,10] [%emt 0:00:28] (Qb3) } 17...Bf5
{ [%eval 48,12] [%emt 0: 00:43] (Nd7) } 18.e3
{ [%eval -3,12] [%emt 0:01:00] (Qd3) } 18...Nd7
{ [%eval 55,12] [%emt 0:00:43] (Nd7) } 19.Qd3
{ [%eval -5,11] [%emt 0:00:21] (Qd3) } 19...Nb6
{ [%eval 56,12] [%emt 0:00:42] (Nb6) } 20.Rfc1
{ [%eval -21,12] [%emt 0:01:07] (Qd2) } 20...Rc8
{ [%eval 58,12] [%emt 0:00:42] (Qe7) } 21.Qd2
{ [%eval -21,10] [%emt 0:00:30] (Qd2) } 21...Qe7
{ [%eval 68,12] [%emt 0:00:42] (Re8) } 22.Qd3
{ [%eval -38, 11] [%emt 0:00:35] (f3) } 22...Re8
{ [%eval 85,13] [%emt 0:00:41] (Re8) } 23.f3
{ [%eval -80,12] [%emt 0:00:42] (f3) } 23...Bd7
{ [%eval 103,12] [%emt 0:00:41] (Bd7) } 24.Re2
{ [%eval -80,12] [%emt 0:00:30] (Re2) } 24...f5
{ [%eval 112,12] [%emt 0:00:40] (a6) } 25.Nc3
{ [%eval -119,11] [%emt 0:00:27] (Nc3) } 25...Qf7
{ [%eval 124,13] [%emt 0:00:40] (Qf7) } 26.Rce1
{ [%eval -156,11] [%emt 0:00:38] (Rd1) } 26...Bxc3
{ [%eval 140,13] [%emt 0:00:40] (h5) } 27.Qxc3
{ [%eval -148,13] [%emt 0:00:42] (Qxc3) } 27...Nxd5
{ [%eval 144,13] [%emt 0:00:39] (Nxd5) } 28.Qd2
{ [%eval -150,12] [%emt 0: 00:27] (Qd2) } 28...Bb5
{ [%eval 132,13] [%emt 0:00:39] (Bc6) } 29.Rf2
{ [%eval -107, 13] [%emt 0:00:43] (Rf2) } 29...Qe6
{ [%eval 124,12] [%emt 0:00:38] (Qe6) } 30.e4
{ [%eval -129,12] [%emt 0:00:52] (e4) } 30...Nf6
{ [%eval 111,12] [%emt 0:00:38] (Nf6) } 31.Qc3
{ [%eval -126,11] [%emt 0:00:34] (e5) } 31...Nh5
{ [%eval 138,11] [%emt 0:00: 37] (Nh5) } 32.Qe3
{ [%eval -141,11] [%emt 0:01:32] (Qc1) } 32...b6
{ [%eval 138,11] [%emt 0:00:36] (Bc6) } 33.Rc2
{ [%eval -153,10] [%emt 0:00:25] (e5) } 33...Nf6
{ [%eval 152,11] [%emt 0:00:36] (d5) } 34.Qc3
{ [%eval -182,10] [%emt 0:00:43] (Qd2) } 34...d5
{ [%eval 178,12] [%emt 0:00:35] (d5) } 35.e5
{ [%eval -194,12] [%emt 0: 00:35] (Rb2) } 35...d4
{ [%eval 182,13] [%emt 0:00:35] (d4) } 36.Qd2
{ [%eval -191,13] [%emt 0:00:46] (Qd2) } 36...Nd5
{ [%eval 182,13] [%emt 0:00:34] (Nd5) } 37.Rcc1
{ [%eval -205,12] [%emt 0:00:37] (Rb2) } 37...Ne3
{ [%eval 182,12] [%emt 0:00:33] (h6) } 38.Rxe3
{ [%eval -161,14] [%emt 0:01:08] (Rb1) } 38...dxe3
{ [%eval 208,13] [%emt 0: 00:26] (dxe3) } 39.Qxe3
{ [%eval -154,14] [%emt 0:01:17] (Qxe3) } 39...Rd8
{ [%eval 205,12] [%emt 0:00:26] (Qd5) } 40.Bf1
{ [%eval -176,13] [%emt 0:01:01] (Re1) } 40...Bxf1
{ [%eval 248,12] [%emt 0:00:26] (Bxf1) } 41.Kxf1
{ [%eval -212,14] [%emt 0: 01:02] (Rxf1) } 41...Kf7
{ [%eval 276,12] [%emt 0:00:35] (Qa2) } 42.Rc2
{ [%eval -180, 12] [%emt 0:00:49] (Rc2) } 42...Rd1+
{ [%eval 302,13] [%emt 0:00:35] (Rd1) } 43.Kg2
{ [%eval -187,14] [%emt 0:00:52] (Kg2) } 43...Qd5
{ [%eval 302,12] [%emt 0:00:35] (Qd5) } 44.Qe2
{ [%eval -184,13] [%emt 0:01:05] (Qe2) } 44...Rd3
{ [%eval 352,12] [%emt 0:00: 22] (Rd3) } 45.a4
{ [%eval -235,12] [%emt 0:01:09] (h4) } 45...c4
{ [%eval 367,12] [%emt 0:00:22] (c4) } 46.Kg3
{ [%eval -263,14] [%emt 0:01:05] (a5) } 46...Ke6
{ [%eval 356,12] [%emt 0:00:22] (c3) } 47.Rc1
{ [%eval -253,12] [%emt 0:00:36] (h4) } 47...h5
{ [%eval 361,12] [%emt 0:00:32] (c3) } 48.h4
{ [%eval -251,14] [%emt 0: 02:39] (h4) } 48...Qe4
{ [%eval 354,12] [%emt 0:00:23] (Ke7) } 49.Qf1
{ [%eval -226,13] [%emt 0:00:33] (Rc2) } 49...c3
{ [%eval 364,12] [%emt 0:00:23] (Kf7) } 50.Rd1
{ [%eval -244,14] [%emt 0:00:27] (Rd1) } 50...Rxd1
{ [%eval 408,14] [%emt 0:00:23] (Rxd1) } 51.Qxd1
{ [%eval -284,16] [%emt 0:00:45] (Qxd1) } 51...Qd5
{ [%eval 413,14] [%emt 0:00:23] (Qd5) } 52.Qc2
{ [%eval -180,15] [%emt 0:00:50] (Qc2) } 52...Qc5
{ [%eval 422,14] [%emt 0:00:24] (Qd2) } 53.Kg2
{ [%eval -286,14] [%emt 0:00:48] (Kg2) } 53...Qd4
{ [%eval 415,13] [%emt 0:00:24] (Ke7) } 54.Qb3+
{ [%eval -262,14] [%emt 0:00:22] (Qb3) } 54...Ke7
{ [%eval 422,12] [%emt 0:00:24] (Ke7) } 55.Kh3
{ [%eval -233,13] [%emt 0:00:19] (Qa3) } 55...Qc5
{ [%eval 704,14] [%emt 0:00:33] (a5) } 56.Qg8
{ [%eval -253,15] [%emt 0:00:45] (Qc2) } 56...c2
{ [%eval 956,13] [%emt 0:00: 43] (Qc6) } 57.Qg7+
{ [%eval -521,14] [%emt 0:00:18] (Qg7) } 57...Kd8
{ [%eval 1060,13] [%emt 0:00:38] (Kd8) } 58.e6
{ [%eval -437,15] [%emt 0:00:33] (e6) } 58...Qc6
{ [%eval 1260,13] [%emt 0:00:51] (Qc6) } 59.e7+
{ [%eval -650,14] [%emt 0:00:22] (e7) } 59...Kd7
{ [%eval 1315,13] [%emt 0:00:24] (Kd7) } 60.Qd4+
{ [%eval -1051,14] [%emt 0:00:18] (Qe5) } 60...Kxe7
{ [%eval 1406,12] [%emt 0:00:25] (Kxe7) } 61.Qg7+
{ [%eval -1172,16] [%emt 0:00:53] (Qg7) } 61...Kd8
{ [%eval 1554,13] [%emt 0:00:25] (Ke8) } 62.Qf8+
{ [%eval -1254,15] [%emt 0:00:28] (Qf8) } 0-1

[Event "41st Amateur D7"]
[Site "ChessGUI4"]
[Date "2013.07.06"]
[Round "11.5"]
[White "Shallow 1.0 64-bit"]
[Black "ChessKiss 1.7 64-bit"]
[Result "1-0"]
[BlackElo "2214"]
[ECO "D45"]
[EventDate "2013.??.??"]
[TimeControl "40/1500:40/1500:40/1500"]
[WhiteElo "2200"]

{ i5 Quad } 1.d4 { [%eval 0,1] [%emt 0:00:00] } 1...d5
{ [%eval 0,1] [%emt 0:00:00] } 2.c4 { [%eval 0,1] [%emt 0:00:00] } 2...c6
{ [%eval 0,1] [%emt 0:00:00] } 3.Nc3 { [%eval 0,1] [%emt 0:00:00] } 3...Nf6
{ [%eval 0,1] [%emt 0:00:00] } 4.e3 { [%eval 0,1] [%emt 0:00:00] } 4...e6
{ [%eval 0,1] [%emt 0:00:00] } 5.Nf3 { [%eval 0,1] [%emt 0:00: 00] } 5...a6
{ [%eval 0,1] [%emt 0:00:00] } 6.c5 { [%eval 0,1] [%emt 0:00:00] } 6...Nbd7
{ [%eval 0,1] [%emt 0:00:00] } 7.b4 { [%eval 0,1] [%emt 0:00:00] } 7...g6
{ [%eval 0,1] [%emt 0:00:00] } 8.Bb2 { [%eval 0,1] [%emt 0:00:00] } 8...Bg7
{ [%eval 0,1] [%emt 0: 00:00] } 9.Bd3 { [%eval 25,13] [%emt 0:00:42] }
9...O-O { [%eval -17,12] [%emt 0:00: 43] (Qe7) } 10.O-O
{ [%eval 26,13] [%emt 0:00:42] (O-O) } 10...e5
{ [%eval -3,12] [%emt 0:00:42] (Qe7) } 11.dxe5
{ [%eval 17,13] [%emt 0:00:42] (dxe5) } 11...Ng4
{ [%eval 12,12] [%emt 0:00:40] (Ng4) } 12.e6
{ [%eval 13,13] [%emt 0:00:42] (e6) } 12...fxe6
{ [%eval 22,12] [%emt 0:00:38] (fxe6) } 13.h3
{ [%eval 8,13] [%emt 0:00:42] (Na4) } 13...Nge5
{ [%eval 18,11] [%emt 0:00:38] (Nge5) } 14.Nxe5
{ [%eval 6,14] [%emt 0:00:42] (Nxe5) } 14...Nxe5
{ [%eval 17,12] [%emt 0:00:36] (Nxe5) } 15.Be2
{ [%eval 1, 13] [%emt 0:00:42] (Na4) } 15...Nd7
{ [%eval 35,11] [%emt 0:00:35] (Nf7) } 16.a3
{ [%eval 11,12] [%emt 0:00:42] (Na4) } 16...Kh8
{ [%eval 42,12] [%emt 0:00:35] (e5) } 17.Qc2
{ [%eval 12,12] [%emt 0:00:42] (Na4) } 17...e5
{ [%eval 48,12] [%emt 0:00:34] (a5) } 18.Nb1
{ [%eval 11,12] [%emt 0:00:42] (Na4) } 18...Qc7
{ [%eval 79,13] [%emt 0:00:33] (Qg5) } 19.Nd2
{ [%eval 5,13] [%emt 0:00:42] (Nd2) } 19...Nf6
{ [%eval 76,12] [%emt 0: 00:32] (Nf6) } 20.Qc3
{ [%eval 6,14] [%emt 0:00:42] (Qc3) } 20...Re8
{ [%eval 81,12] [%emt 0:00:31] (Re8) } 21.Rad1
{ [%eval 3,13] [%emt 0:00:42] (Bd3) } 21...a5
{ [%eval 84,11] [%emt 0:00:30] (Bf5) } 22.b5
{ [%eval 7,13] [%emt 0:00:42] (bxa5) } 22...cxb5
{ [%eval 95,11] [%emt 0:00:29] (Bf5) } 23.Bxb5
{ [%eval 7,13] [%emt 0:00:42] (Bxb5) } 23...Re7
{ [%eval 83,12] [%emt 0:00:26] (Re7) } 24.Rc1
{ [%eval 10,13] [%emt 0:00:42] (Nf3) } 24...Bf5
{ [%eval 68,11] [%emt 0:00:25] (Bf5) } 25.Rfd1
{ [%eval 11, 13] [%emt 0:00:42] (c6) } 25...Rc8
{ [%eval 74,10] [%emt 0:00:27] (Rd8) } 26.a4
{ [%eval 34,12] [%emt 0:00:42] (Qb3) } 26...d4
{ [%eval 40,10] [%emt 0:00:26] (Ne4) } 27.exd4
{ [%eval 26,13] [%emt 0:00:42] (Qa3) } 27...exd4
{ [%eval 44,11] [%emt 0:00:25] (exd4) } 28.Qa3
{ [%eval 42,12] [%emt 0:00:42] (Qc4) } 28...Ne4
{ [%eval 39,10] [%emt 0:00:27] (Ne4) } 29.Nf3
{ [%eval 53,12] [%emt 0:00:42] (Nf3) } 29...Nc3
{ [%eval -11, 10] [%emt 0:00:24] (Nxc5) } 30.Rxd4
{ [%eval 76,13] [%emt 0:00:42] (Rxd4) } 30...Nxb5
{ [%eval -64,11] [%emt 0:00:34] (Nxb5) } 31.axb5
{ [%eval 93,13] [%emt 0:00:42] (axb5) } 31...Bxd4
{ [%eval -95,11] [%emt 0:00:22] (Bxd4) } 32.Nxd4
{ [%eval 137,12] [%emt 0:00:42] (Nxd4) } 32...Kg8
{ [%eval -188,12] [%emt 0:00:21] (Kg8) } 33.c6
{ [%eval 172,12] [%emt 0:00:42] (Nxf5) } 33...Rce8
{ [%eval -141,10] [%emt 0:00:21] (b6) } 34.Qc3
{ [%eval 297,12] [%emt 0:00:42] (Qa2) } 34...Rf8
{ [%eval -320,10] [%emt 0: 00:20] (Rf8) } 35.Nxf5
{ [%eval 461,12] [%emt 0:00:42] (Nxf5) } 35...gxf5
{ [%eval -458,11] [%emt 0:00:23] (gxf5) } 36.b6
{ [%eval 492,12] [%emt 0:00:42] (Qh8) } 36...Qxb6
{ [%eval -480,11] [%emt 0:00:19] (Qxb6) } 37.Qh8+
{ [%eval 587,13] [%emt 0: 00:42] (c7) } 37...Kf7
{ [%eval 1,1] [%emt 0:00:00] (Kf7) } 38.Qxh7+
{ [%eval 587,13] [%emt 0:00:42] } 38...Ke8
{ [%eval -515,11] [%emt 0:00:18] (Ke8) } 39.Qg6+
{ [%eval 784,14] [%emt 0:00:42] (Qg6) } 39...Rff7
{ [%eval -513,12] [%emt 0:00:18] (Rff7) } 40.Ba3
{ [%eval 790,14] [%emt 0:00:42] (c7) } 40...Qxc6
{ [%eval -844,11] [%emt 0:00:17] (Qxc6) } 41.Rxc6
{ [%eval 795,13] [%emt 0:00:37] (Rxc6) } 41...bxc6
{ [%eval -950,13] [%emt 0:00:59] (bxc6) } 42.Qxc6+
{ [%eval 800,12] [%emt 0:00:37] (Qxc6) } 1-0

[Event "41st Amateur D7"]
[Site "ChessGUI4"]
[Date "2013.07.06"]
[Round "12.1"]
[White "Carballo 0.8"]
[Black "Butcher 1.64 64-bit"]
[Result "1/2-1/2"]
[BlackElo "2355"]
[ECO "C63"]
[EventDate "2013.??.??"]
[TimeControl "40/1500:40/1500:40/1500"]
[WhiteElo "2273"]

{ i5 Quad } 1.e4 { [%eval 0,1] [%emt 0:00:00] } 1...e5
{ [%eval 0,1] [%emt 0:00:00] } 2.Nf3 { [%eval 0,1] [%emt 0:00:00] } 2...Nc6
{ [%eval 0,1] [%emt 0:00:00] } 3.Bb5 { [%eval 0,1] [%emt 0:00:00] } 3...f5
{ [%eval 0,1] [%emt 0:00:00] } 4.d3 { [%eval 0,1] [%emt 0:00:00] } 4...fxe4
{ [%eval 0,1] [%emt 0:00:00] } 5.dxe4 { [%eval 0,1] [%emt 0: 00:00] } 5...Nf6
{ [%eval 0,1] [%emt 0:00:00] } 6.O-O { [%eval 0,1] [%emt 0:00:00] } 6...Bc5
{ [%eval 0,1] [%emt 0:00:00] } 7.Bxc6 { [%eval 0,1] [%emt 0:00:00] } 7...bxc6
{ [%eval 0,1] [%emt 0:00:00] } 8.Nxe5 { [%eval 0,1] [%emt 0:00:00] } 8...O-O
{ [%eval 0, 1] [%emt 0:00:00] } 9.Bg5 { [%eval 54,13] [%emt 0:00:37] }
9...Qe8 { [%eval 94,12] [%emt 0:01:06] (Qe8) } 10.Bxf6
{ [%eval 55,14] [%emt 0:00:36] (Bxf6) } 10...Rxf6
{ [%eval 87,12] [%emt 0:01:00] (Rxf6) } 11.Nd3
{ [%eval 52,13] [%emt 0:00:35] (Nd3) } 11...Bb6
{ [%eval 82,12] [%emt 0:00:58] (Bb6) } 12.Nd2
{ [%eval 49,12] [%emt 0: 00:34] (e5) } 12...d6
{ [%eval 71,11] [%emt 0:00:58] (d6) } 13.a4
{ [%eval 57,12] [%emt 0:00:33] (c4) } 13...Qg6
{ [%eval 52,12] [%emt 0:01:04] (Rb8) } 14.Kh1
{ [%eval 60,12] [%emt 0:00:32] (Kh1) } 14...Ba6
{ [%eval 59,12] [%emt 0:01:03] (a5) } 15.c4
{ [%eval 65,12] [%emt 0:00:32] (c4) } 15...Re8
{ [%eval 41,11] [%emt 0:00:59] (Bd4) } 16.b4
{ [%eval 75,12] [%emt 0:00:31] (Rc1) } 16...Bd4
{ [%eval 5,11] [%emt 0:01:46] (Bd4) } 17.Rc1
{ [%eval 73,12] [%emt 0:00:30] (Rc1) } 17...d5
{ [%eval 28,11] [%emt 0:00:57] (c5) } 18.f3
{ [%eval 80,13] [%emt 0:00:29] (b5) } 18...Be3
{ [%eval 0,11] [%emt 0:00: 56] (Be3) } 19.b5
{ [%eval 72,12] [%emt 0:00:29] (Re1) } 19...Qg3
{ [%eval 0,11] [%emt 0:00:55] (dxc4) } 20.Re1
{ [%eval 247,13] [%emt 0:00:28] (Re1) } 20...Qxh2+
{ [%eval 0, 12] [%emt 0:00:54] (Rg6) } 21.Kxh2
{ [%eval 996,17] [%emt 0:00:27] (Kxh2) } 21...Rh6+
{ [%eval 0,13] [%emt 0:00:46] (Rh6) } 22.Kg3
{ [%eval 996,18] [%emt 0:00:26] (Kg3) } 22...Rg6+
{ [%eval 0,13] [%emt 0:00:45] (Rg6) } 23.Kh2
{ [%eval 999,17] [%emt 0:00:26] (Kh3) } 23...Rh6+
{ [%eval 0,13] [%emt 0:00:44] (Rh6) } 24.Kg3
{ [%eval 907, 15] [%emt 0:00:25] (Kg3) } 24...Rg6+
{ [%eval 0,13] [%emt 0:00:44] (Rg6) } 25.Kh4
{ [%eval 907,15] [%emt 0:00:24] (Kh2) } 25...Rh6+
{ [%eval 0,12] [%emt 0:00:43] (Rh6) } 26.Kg4
{ [%eval -90,19] [%emt 0:00:24] (Kg4) } 26...Bc8+
{ [%eval 0,12] [%emt 0:00:40] (Rg6) } 27.Kg3
{ [%eval -90,19] [%emt 0:00:23] (Kg3) } 27...Rg6+
{ [%eval 0,12] [%emt 0:00:39] (Rg6) } 28.Kh2
{ [%eval -90,21] [%emt 0:00:23] (Kh2) } 28...Rh6+
{ [%eval 0, 12] [%emt 0:00:35] (Rh6) } 29.Kg3
{ [%eval -90,20] [%emt 0:00:22] (Kg3) } 29...Rg6+
{ [%eval 0,12] [%emt 0:00:38] (Rg6) } 30.Kh2
{ [%eval -90,17] [%emt 0:00:21] (Kh2) } 30...Rh6+
{ [%eval 0,13] [%emt 0:00:41] (Rh6) } 31.Kg3
{ [%eval -90,63] [%emt 0:00: 00] (Kg3) } 1/2-1/2